bitfinex-derivatives/quotes_SOLF0:USTF0_20250803
["timestamp","ask_amount","ask_price","bid_price","bid_amount"]
[1754223826469,3.45,161.19,161.16,6.2049]
[1754223828172,3.45,161.19,161.16,7.6849]
[1754223828873,3.45,161.18,161.17,6.2046]
[1754223829175,3.45,161.18,161.17,7.6846]
[1754223830263,3.45,161.18,161.14,5.21130896]
[1754223830468,3.45,161.18,161.15,1.48]
[1754223830865,3.45,161.18,161.15,7.6853]
[1754223831166,3.45,161.18,161.14,6.69130896]
[1754223831661,3.45,161.16,161.13,11.41740896]
[1754223831867,3.45,161.16,161.13,12.89740896]
[1754223832369,6.2051,161.16,161.13,5.21130896]
[1754223832564,3.45,161.15,161.11,5.21130896]
[1754223832766,3.45,161.15,161.11,6.69130896]
[1754223832975,3.45,161.15,161.11,6.69963917]
[1754223833169,3.45,161.15,161.12,6.2066]
[1754223833376,3.45,161.15,161.1,6.69963917]
[1754223833770,9.6558,161.15,161.1,6.69963917]
[1754223834073,3.45,161.14,161.1,6.69963917]
[1754223835174,3.45,161.14,161.11,6.2069]
[1754223836478,3.45,161.14,161.11,7.6869]
[1754223836875,3.45,161.14,161.12,6.2066]
[1754223840775,3.45,161.14,161.12,7.6866]
[1754223841381,3.45,161.14,161.12,1.48]
[1754223842179,3.45,161.14,161.11,6.2069]
[1754223842380,3.45,161.14,161.11,7.6869]
[1754223843174,3.45,161.14,161.12,6.2065]
[1754223843479,3.45,161.14,161.12,7.6865]
[1754223843885,3.45,161.14,161.12,1.48]
[1754223846576,3.45,161.14,161.1,12.90693917]
[1754223846877,3.45,161.14,161.1,6.69963917]
[1754223847181,3.45,161.14,161.11,1.48]
[1754223848485,3.45,161.14,161.11,11.42653917]
[1754223848677,3.45,161.14,161.12,1.48]
[1754223850179,3.45,161.14,161.12,7.6866]
[1754223850896,3.45,161.23,161.12,6.69963917]
[1754223851083,3.45,161.23,161.13,1.48]
[1754223851284,6.2038,161.2,161.14,6.2058]
[1754223851580,3.45,161.19,161.14,7.6858]
[1754223851891,9.6539,161.19,161.14,7.6858]
[1754223852189,3.45,161.18,161.14,7.6858]
[1754223852792,3.45,161.18,161.15,6.2054]
[1754223853087,3.45,161.18,161.16,1.48]
[1754223853286,3.45,161.18,161.15,7.6854]
[1754223854485,3.45,161.18,161.16,1.48]
[1754223854682,3.49,161.17,161.16,1.48]
[1754223855891,3.49,161.17,161.16,7.6851]
[1754223856786,3.49,161.17,161.16,1.48]
[1754223857690,3.49,161.17,161.15,7.6853]
[1754223860197,6.2037,161.2,161.15,6.2053]
[1754223860493,3.49,161.17,161.16,7.685]
[1754223861393,3.49,161.17,161.16,1.48]
[1754223862400,3.49,161.17,161.15,6.2054]
[1754223862591,3.49,161.17,161.15,7.6854]
[1754223864103,3.49,161.16,161.14,5.21727791]
[1754223864699,3.49,161.16,161.15,7.6854]
[1754223866796,3.49,161.16,161.15,12.90267791]
[1754223868305,3.49,161.16,161.15,7.6854]
[1754223868702,3.49,161.16,161.15,12.90267791]
[1754223870006,3.49,161.16,161.15,11.42267791]
[1754223870405,3.49,161.16,161.15,6.2054]
[1754223872408,3.49,161.16,161.15,7.6854]
[1754223877809,3.49,161.16,161.15,6.2054]
[1754223878009,3.49,161.16,161.13,5.21727791]
[1754223878215,3.49,161.16,161.12,5.21727791]
[1754223878615,3.49,161.16,161.13,6.2059]
[1754223879913,3.49,161.16,161.11,5.21727791]
[1754223880216,3.49,161.16,161.1,5.21727791]
[1754223880417,3.49,161.16,161.11,5.21727791]
[1754223880711,3.49,161.16,161.11,11.42397791]
[1754223880911,3.49,161.16,161.11,5.21727791]
[1754223881517,3.49,161.16,161.12,6.2062]
[1754223881915,3.49,161.16,161.11,5.21727791]
[1754223882116,3.49,161.16,161.11,11.42417791]
[1754223882718,9.6951,161.16,161.11,11.42417791]
[1754223883019,3.49,161.15,161.11,11.42417791]
[1754223883821,3.49,161.15,161.12,6.2066]
[1754223884216,3.49,161.15,161.1,5.21727791]
[1754223884416,3.49,161.15,161.11,6.2067]
[1754223884722,3.49,161.15,161.1,5.21727791]
[1754223885918,3.37,161.14,161.11,6.2069]
[1754223887826,3.37,161.14,161.12,6.2066]
[1754223888525,3.37,161.14,161.13,6.2062]
[1754223888825,3.37,161.14,161.08,114.36]
[1754223888826,3.37,161.14,161.12,1.47]
[1754223889027,6.2042,161.19,161.1,5.21727791]
[1754223889327,3.37,161.18,161.12,1.47]
[1754223889621,3.37,161.18,161.14,6.2055]
[1754223890524,3.37,161.18,161.14,7.6755]
[1754223890726,3.37,161.18,161.15,7.6752]
[1754223891229,3.37,161.18,161.15,6.2052]
[1754223891623,3.37,161.18,161.15,7.6752]
[1754223893220,6.204,161.19,161.15,6.2052]
[1754223893423,208.96928442,161.25,161.14,6.68727791]
[1754223893424,3.37,161.22,161.14,6.68727791]
[1754223893724,3.37,161.22,161.15,1.47]
[1754223894318,6.2029,161.22,161.17,6.2044]
[1754223894516,3.37,161.21,161.17,7.6744]
[1754223894923,3.37,161.21,161.18,1.47]
[1754223895524,3.37,161.21,161.18,6.2043]
[1754223895726,3.37,161.2,161.17,1.47]
[1754223895925,3.37,161.2,161.17,5.21727791]
[1754223896126,3.37,161.2,161.18,1.47]
[1754223897230,3.37,161.2,161.19,6.2039]
[1754223897419,3.37,161.2,161.19,7.6739]
[1754223898030,207.23304206,161.25,161.2,6.2033]
[1754223898230,3.37,161.24,161.2,7.6733]
[1754223898929,3.37,161.24,161.21,6.2031]
[1754223899330,3.37,161.24,161.21,7.6731]
[1754223900436,3.37,161.24,161.22,6.2027]
[1754223900730,3.37,161.23,161.22,7.6727]
[1754223901232,201.03134206,161.25,161.22,6.2027]
[1754223901429,3.37,161.24,161.23,7.6724]
[1754223901625,3.37,161.27,161.2,5.21727791]
[1754223901829,3.37,161.27,161.25,1.47]
[1754223902333,3.37,161.27,161.24,6.2017]
[1754223902937,3.37,161.27,161.22,1.47]
[1754223903332,21.69497361,161.28,161.27,6.2008]
[1754223903333,3.37,161.28,161.27,6.2008]
[1754223903537,3.37,161.28,161.27,1.47]
[1754223905138,3.37,161.28,161.27,7.6708]
[1754223905536,3.37,161.28,161.27,1.47]
[1754223906236,3.37,161.28,161.26,7.6709]
[1754223906735,3.37,161.28,161.22,1.47]
[1754223908134,3.37,161.28,161.24,6.2017]
[1754223910140,3.37,161.28,161.22,6.2026]
[1754223911039,6.2009,161.27,161.22,6.2026]
[1754223911242,3.37,161.26,161.22,6.2026]
[1754223911541,3.37,161.26,161.23,6.2023]
[1754223914049,3.37,161.26,161.19,1.47]
[1754223914742,3.37,161.26,161.24,6.2017]
[1754223919546,3.37,161.26,161.24,7.6717]
[1754223919861,3.37,161.26,161.25,6.2016]
[1754223920060,3.37,161.26,161.25,7.6716]
[1754223923456,3.37,161.26,161.25,1.47]
[1754223924153,3.37,161.26,161.24,6.2018]
[1754223924358,3.37,161.26,161.24,7.6818]
[1754223924960,6.2001,161.29,161.24,7.6818]
[1754223925159,3.22,161.25,161.24,7.6818]
[1754223925658,3.22,161.26,161.24,7.6818]
[1754223925853,3.22,161.26,161.25,1.48]
[1754223926359,3.22,161.26,161.2,1.48]
[1754223926561,3.22,161.26,161.22,6.2026]
[1754223926858,3.22,161.26,161.18,1.48]
[1754223927249,6.2016,161.25,161.18,1.48]
[1754223927454,3.22,161.24,161.2,6.2033]
[1754223927756,3.22,161.24,161.2,7.6833]
[1754223928254,3.22,161.24,161.2,6.2033]
[1754223929962,3.22,161.24,161.21,6.2031]
[1754223934766,3.22,161.24,161.2,7.6834]
[1754223935067,3.22,161.23,161.2,7.6834]
[1754223935262,3.22,161.23,161.2,6.2034]
[1754223935867,9.4224,161.23,161.2,6.2034]
[1754223936063,3.22,161.22,161.2,6.2034]
[1754223937269,3.22,161.22,161.2,7.6834]
[1754223937471,3.22,161.21,161.2,7.6834]
[1754223938665,3.22,161.21,161.19,7.6838]
[1754223939170,3.22,161.22,161.19,1.48]
[1754223940169,3.22,161.22,161.19,7.6839]
[1754223940466,3.22,161.22,161.18,5.21727791]
[1754223940864,3.22,161.22,161.18,6.69727791]
[1754223941266,3.22,161.22,161.18,12.90127791]
[1754223941483,3.22,161.22,161.19,1.48]
[1754223941862,3.22,161.22,161.19,7.6839]
[1754223942063,3.22,161.22,161.19,6.2039]
[1754223942372,3.22,161.22,161.2,1.48]
[1754223943364,3.22,161.21,161.2,1.48]
[1754223945764,3.22,161.21,161.19,6.69727791]
[1754223946072,3.22,161.21,161.19,1.48]
[1754223947162,3.22,161.21,161.19,7.6839]
[1754223948372,3.22,161.21,161.2,6.2035]
[1754223948573,3.22,161.21,161.2,7.6835]
[1754223949978,3.4,161.24,161.21,6.2031]
[1754223950275,3.4,161.24,161.21,1.48]
[1754223950473,3.4,161.24,161.2,1.48]
[1754223951273,3.4,161.24,161.2,7.6834]
[1754223952675,3.4,161.24,161.21,6.203]
[1754223953874,3.4,161.23,161.21,6.203]
[1754223955981,3.4,161.23,161.2,7.6834]
[1754223956274,3.4,161.31,161.21,5.21727791]
[1754223956477,3.4,161.31,161.23,1.48]
[1754223956868,3.4,161.29,161.23,6.69727791]
[1754223957068,3.4,161.29,161.24,1.48]
[1754223957882,3.4,161.29,161.25,6.2015]
[1754223958179,3.4,161.29,161.25,7.6815]
[1754223959179,3.4,161.28,161.24,7.6819]
[1754223960378,3.4,161.27,161.23,11.41957791]
[1754223960579,3.4,161.27,161.22,5.21727791]
[1754223960781,9.6011,161.27,161.21,5.21727791]
[1754223960980,3.4,161.26,161.22,6.2025]
[1754223961581,3.4,161.26,161.23,1.48]
[1754223961881,3.4,161.25,161.24,1.48]
[1754223962280,3.4,161.27,161.25,7.6814]
[1754223962478,6.2003,161.29,161.25,7.6814]
[1754223962680,3.4,161.26,161.25,7.6816]
[1754223964784,3.4,161.27,161.26,6.2011]
[1754223964983,3.4,161.27,161.26,7.6811]
[1754223965887,3.4,161.27,161.25,6.2015]
[1754223966187,3.4,161.27,161.24,6.69727791]
[1754223966489,3.4,161.27,161.24,1.48]
[1754223967087,6.1997,161.31,161.24,1.48]
[1754223967283,3.4,161.28,161.25,1.48]
[1754223967785,3.4,161.27,161.26,6.2012]
[1754223967987,3.4,161.27,161.26,7.6812]
[1754223968584,3.4,161.28,161.27,6.2007]
[1754223968777,3.4,161.28,161.27,7.6807]
[1754223969188,3.4,161.28,161.27,1.48]
[1754223969389,3.4,161.28,161.26,7.6811]
[1754223969587,3.4,161.3,161.26,7.6811]
[1754223970279,3.4,161.3,161.27,6.2008]
[1754223971986,3.4,161.3,161.28,6.2003]
[1754223972186,3.4,161.3,161.28,7.6803]
[1754223973184,3.4,161.3,161.28,6.2003]
[1754223976192,3.4,161.3,161.28,7.6803]
[1754223977191,3.48,161.3,161.29,7.6799]
[1754223977896,3.48,161.3,161.29,6.1999]
[1754223978194,3.48,161.3,161.29,7.6799]
[1754223979292,3.48,161.3,161.28,6.2003]
[1754223979487,223.70485466,161.32,161.28,6.2003]
[1754223979691,223.70485466,161.32,161.28,7.7003]
[1754223980092,6.1994,161.31,161.24,5.21727791]
[1754223980296,217.50595466,161.32,161.24,5.21727791]
[1754223980493,217.50595466,161.32,161.23,6.71727791]
[1754223980795,6.1999,161.3,161.25,6.2014]
[1754223981294,6.1999,161.3,161.25,7.7014]
[1754223981595,3.48,161.29,161.25,7.7014]
[1754223982497,3.48,161.29,161.26,6.2012]
[1754223984596,9.6804,161.29,161.24,6.2019]
[1754223984791,3.48,161.29,161.21,6.71727791]
[1754223985190,3.48,161.29,161.21,1.5]
[1754223985390,3.48,161.29,161.21,6.71727791]
[1754223986096,6.2011,161.27,161.23,6.2021]
[1754223986300,3.48,161.26,161.23,6.2021]
[1754223991000,3.48,161.25,161.23,6.2021]
[1754223992102,3.48,161.29,161.19,5.21727791]
[1754223992295,3.48,161.29,161.18,120.75727791]
[1754223992488,6.2023,161.24,161.2,6.2032]
[1754223992705,3.48,161.23,161.18,120.75727791]
[1754223992998,3.48,161.23,161.18,121.744]
[1754223993204,1.07970587,161.29,161.18,6.204]
[1754223993400,3.48,161.28,161.18,6.204]
[1754223994999,3.48,161.28,161.19,6.2039]
[1754223995299,3.48,161.28,161.19,7.7039]
[1754223995902,3.48,161.28,161.2,6.2035]
[1754223996200,3.48,161.28,161.17,5.21727791]
[1754223996401,3.48,161.28,161.18,1.5]
[1754223996594,3.48,161.24,161.19,7.7039]
[1754223996901,114.02,161.27,161.19,7.7039]
[1754223997100,3.48,161.26,161.19,7.7039]
[1754223997402,3.48,161.26,161.2,6.2035]
[1754223997602,3.48,161.24,161.2,7.7035]
[1754223997793,3.48,161.22,161.2,7.7035]
[1754223997999,6.37988576,161.21,161.2,7.7035]
[1754223998805,2.89988576,161.21,161.2,7.7035]
[1754223999099,3.48,161.23,161.21,1.5]
[1754223999300,6.3809241,161.22,161.21,1.5]
[1754223999501,3.48,161.21,161.19,7.7038]
[1754223999802,3.48,161.2,161.19,7.7038]
[1754224000003,3.48,161.2,161.18,7.7042]
[1754224000202,6.2024,161.23,161.18,6.2042]
[1754224000405,2.9007748,161.22,161.18,7.7042]
[1754224000592,6.3807748,161.21,161.18,1.5]
[1754224000907,3.48,161.2,161.17,6.71727791]
[1754224001097,3.48,161.2,161.17,1.5]
[1754224002101,3.48,161.2,161.17,6.2047]
[1754224002301,3.48,161.2,161.18,1.5]
[1754224002605,3.48,161.19,161.18,1.5]
[1754224002804,3.48,161.21,161.19,1.5]
[1754224002997,3.48,161.2,161.19,1.5]
[1754224004007,3.48,161.2,161.17,6.2047]
[1754224004199,3.28,161.19,161.18,1.51]
[1754224005493,3.28,161.19,161.17,1.51]
[1754224006309,3.28,161.18,161.17,1.51]
[1754224008802,3.28,161.18,161.17,7.7147]
[1754224010007,3.28,161.18,161.17,1.51]
[1754224011206,3.28,161.18,161.17,7.7147]
[1754224011610,3.28,161.28,161.15,5.21727791]
[1754224011809,115.07970587,161.29,161.18,7.714]
[1754224011810,3.28,161.23,161.18,7.714]
[1754224012005,3.28,161.21,161.16,1.51]
[1754224013705,3.28,161.21,161.18,6.204]
[1754224013911,3.28,161.21,161.18,7.714]
[1754224016307,3.28,161.21,161.18,6.204]
[1754224016715,3.28,161.21,161.18,7.714]
[1754224019514,3.28,161.21,161.18,6.204]
[1754224020114,6.2032,161.21,161.17,6.2046]
[1754224020311,6.17753206,161.2,161.15,5.21727791]
[1754224020508,6.1774766,161.19,161.14,6.72727791]
[1754224020704,3.28,161.17,161.15,6.2052]
[1754224021514,3.28,161.19,161.16,7.715]
[1754224021717,3.28,161.19,161.14,1.51]
[1754224022119,3.28,161.19,161.15,6.2052]
[1754224022416,3.28,161.19,161.15,7.7152]
[1754224023117,3.28,161.19,161.16,6.205]
[1754224023809,9.484,161.19,161.15,7.7153]
[1754224024011,2.89881677,161.18,161.13,6.72727791]
[1754224024217,3.28,161.17,161.13,6.72727791]
[1754224025014,2.89737002,161.16,161.11,5.21727791]
[1754224025312,3.28,161.15,161.11,5.21727791]
[1754224025706,3.28,161.14,161.11,11.42387791]
[1754224027014,3.28,161.13,161.11,5.21727791]
[1754224027219,3.28,161.13,161.1,119.19727791]
[1754224027420,3.28,161.13,161.11,11.42417791]
[1754224028119,3.28,161.13,161.11,5.21727791]
[1754224028715,3.28,161.13,161.11,11.42417791]
[1754224028922,3.28,161.13,161.11,7.7169]
[1754224029119,6.2052,161.16,161.11,1.51]
[1754224029326,2.89503626,161.15,161.1,5.21727791]
[1754224029520,3.28,161.13,161.11,1.51]
[1754224031024,3.28,161.13,161.1,5.21727791]
[1754224031025,3.28,161.13,161.12,7.7163]
[1754224031231,6.2048,161.17,161.12,7.7163]
[1754224031524,3.28,161.14,161.13,7.7162]
[1754224032428,3.28,161.14,161.13,6.2062]
[1754224032628,3.28,161.14,161.13,7.7162]
[1754224036232,3.28,161.14,161.13,6.2062]
[1754224036431,3.28,161.14,161.12,7.6965]
[1754224037524,6.2043,161.18,161.13,6.2062]
[1754224037725,2.89618656,161.17,161.13,6.2062]
[1754224037928,2.89618656,161.16,161.13,6.2062]
[1754224038229,3.33,161.14,161.13,6.2062]
[1754224038529,3.33,161.18,161.16,1.49]
[1754224038731,3.33,161.17,161.16,1.49]
[1754224038932,6.203,161.22,161.16,1.49]
[1754224039132,6.203,161.22,161.14,5.21727791]
[1754224039133,3.33,161.2,161.17,7.6946]
[1754224039431,3.33,161.18,161.17,7.6946]
[1754224042128,416.88,161.26,161.18,6.2043]
[1754224042330,6.22783163,161.25,161.18,6.2043]
[1754224042632,3.33,161.23,161.18,6.2043]
[1754224042835,3.33,161.21,161.19,6.2039]
[1754224043128,2.89783163,161.2,161.18,1.49]
[1754224043320,6.22783163,161.19,161.18,7.6942]
[1754224044740,3.33,161.19,161.18,7.6942]
[1754224045733,3.33,161.24,161.19,6.2036]
[1754224046033,3.33,161.22,161.19,6.2036]
[1754224046337,3.33,161.2,161.19,6.2036]
[1754224047035,3.33,161.24,161.19,6.2036]
[1754224047241,3.33,161.22,161.19,7.6936]
[1754224047540,3.33,161.2,161.19,7.6936]
[1754224048036,3.33,161.2,161.19,6.2036]
[1754224049234,3.33,161.2,161.18,6.2042]
[1754224049440,3.33,161.2,161.16,5.21727791]
[1754224049929,2.89695299,161.19,161.15,5.21727791]
[1754224050132,3.33,161.17,161.14,5.21727791]
[1754224050336,3.33,161.17,161.14,6.70727791]
[1754224050539,3.33,161.17,161.15,6.2054]
[1754224051238,3.33,161.17,161.15,7.6954]
[1754224051443,3.33,161.17,161.16,6.2051]
[1754224051744,3.33,161.17,161.16,7.6951]
[1754224054742,3.33,161.23,161.16,6.70727791]
[1754224055050,3.33,161.21,161.18,1.49]
[1754224055346,3.33,161.21,161.2,6.2035]
[1754224055545,6.22765343,161.21,161.2,6.2035]
[1754224062752,228.97306877,161.25,161.17,5.21727791]
[1754224062753,222.77136877,161.25,161.19,5.21727791]
[1754224062953,6.22772198,161.24,161.2,6.71727791]
[1754224063151,3.33,161.23,161.2,1.5]
[1754224063861,3.33,161.23,161.21,6.2031]
[1754224064054,3.33,161.23,161.18,6.72727791]
[1754224064758,3.33,161.23,161.18,5.21727791]
[1754224065056,3.35,161.21,161.18,5.21727791]
[1754224065258,3.35,161.21,161.18,6.72727791]
[1754224066259,3.35,161.21,161.18,1.51]
[1754224066559,3.35,161.21,161.19,6.2036]
[1754224067761,3.35,161.21,161.2,6.2035]
[1754224068360,3.35,161.21,161.2,7.7135]
[1754224068552,3.35,161.24,161.21,7.7129]
[1754224068859,3.35,161.22,161.21,7.7129]
[1754224075064,3.35,161.22,161.21,6.2029]
[1754224075360,3.35,161.22,161.21,7.7129]
[1754224076661,3.35,161.22,161.21,6.2029]
[1754224077360,3.35,161.22,161.21,7.7129]
[1754224079361,222.77136877,161.25,161.22,6.2025]
[1754224079562,6.24703279,161.24,161.22,7.7125]
[1754224079862,3.35,161.24,161.22,7.7125]
[1754224080061,3.35,161.24,161.22,6.2025]
[1754224080260,2.89771145,161.23,161.22,6.2025]
[1754224080456,6.24771145,161.23,161.22,6.2025]
[1754224081661,6.24771145,161.23,161.22,7.7125]
[1754224083561,6.24771145,161.23,161.22,6.2025]
[1754224084562,6.85806897,161.35,161.22,5.21000345]
[1754224084763,3.35,161.3,161.24,6.72000345]
[1754224084962,3.35,161.3,161.25,1.51]
[1754224085355,3.35,161.3,161.27,6.2005]
[1754224086767,355.32201782,161.32,161.27,6.2005]
[1754224086768,3.35,161.28,161.27,6.2005]
[1754224086967,7.84393956,161.28,161.27,6.2005]
[1754224087168,4.49393956,161.28,161.26,6.2011]
[1754224087368,3.35,161.27,161.26,6.2011]
[1754224087570,8.12615581,161.27,161.26,6.2011]
[1754224091069,3.35,161.27,161.26,6.2011]
[1754224091671,8.52169605,161.27,161.26,6.2011]
[1754224092667,8.52169605,161.27,161.26,3.10068125]
[1754224093069,3.35,161.26,161.21,5.21000345]
[1754224093271,3.35,161.24,161.21,6.72000345]
[1754224093472,3.35,161.22,161.21,12.92310345]
[1754224093775,8.52169605,161.22,161.21,12.92310345]
[1754224094073,5.17169605,161.22,161.21,12.92310345]
[1754224095669,8.51169605,161.22,161.21,7.7131]
[1754224096171,8.51169605,161.22,161.21,12.92310345]
[1754224097563,3.34,161.22,161.21,12.92310345]
[1754224097767,9.28808236,161.22,161.21,12.92310345]
[1754224101271,8.236e-05,161.22,161.21,7.7131]
[1754224101667,6.1998,161.3,161.25,6.2016]
[1754224103378,3.34,161.29,161.26,6.2012]
[1754224103874,3.34,161.29,161.22,5.21424621]
[1754224104178,3.34,161.29,161.27,6.2008]
[1754224105270,3.34,161.29,161.28,6.2005]
[1754224111883,3.34,161.29,161.26,6.2009]
[1754224113176,5.74108381,161.28,161.26,6.2009]
[1754224113379,9.08108381,161.27,161.26,6.2009]
[1754224115084,3.34,161.26,161.25,6.2015]
[1754224115287,9.08108381,161.26,161.25,11.41574621]
[1754224117788,9.08108381,161.26,161.25,12.74574621]
[1754224118176,5.74108381,161.26,161.25,12.74574621]
[1754224118376,5.74108381,161.26,161.25,12.74630734]
[1754224118586,9.08108381,161.26,161.25,12.74630734]
[1754224118989,9.08108381,161.26,161.25,7.5315]
[1754224120787,3.34,161.26,161.25,7.5315]
[1754224121088,11.08988867,161.26,161.25,9.64635069]
[1754224123996,7.74988867,161.26,161.25,9.64635069]
[1754224124490,11.00988867,161.26,161.25,9.64635069]
[1754224126690,11.00988867,161.26,161.25,9.64699925]
[1754224128291,11.00988867,161.26,161.25,9.64820839]
[1754224128485,11.00988867,161.26,161.25,8.31820839]
[1754224128894,11.00988867,161.26,161.25,3.10154453]
[1754224129106,11.00988867,161.26,161.25,9.62820839]
[1754224129701,11.00988867,161.26,161.25,9.62881461]
[1754224130402,11.00988867,161.26,161.25,4.41154453]
[1754224130994,11.00988867,161.26,161.25,3.10154453]
[1754224133298,11.00988867,161.26,161.25,8.31851703]
[1754224137807,3.26,161.26,161.25,8.31851703]
[1754224137997,9.48758512,161.26,161.25,8.31851703]
[1754224138304,9.48758512,161.26,161.25,3.10154453]
[1754224138604,9.48812879,161.26,161.25,3.10154453]
[1754224138804,9.48812879,161.26,161.25,8.31899438]
[1754224139712,9.48812879,161.26,161.25,3.10154453]
[1754224140904,9.48812879,161.26,161.25,8.3197814]
[1754224141202,9.48812879,161.26,161.25,3.10154453]
[1754224143011,9.48812879,161.26,161.25,8.32155736]
[1754224143312,9.48812879,161.26,161.25,3.10154453]
[1754224145612,3.26,161.26,161.25,3.10154453]
[1754224148715,8.062094,161.26,161.25,3.10154453]
[1754224151020,3.26,161.26,161.25,3.10154453]
[1754224161525,3.26,161.26,161.25,10.05374685]
[1754224161725,3.26,161.26,161.25,3.10154453]
[1754224162327,3.26,161.26,161.25,10.05374685]
[1754224162625,3.26,161.26,161.25,3.10154453]
[1754224163231,3.5,161.31,161.28,6.2004]
[1754224163426,3.5,161.31,161.28,11.42726012]
[1754224163930,3.5,161.31,161.28,5.22686012]
[1754224165531,3.5,161.31,161.27,11.42756012]
[1754224165726,3.5,161.31,161.28,5.22686012]
[1754224166326,3.5,161.31,161.27,11.42756012]
[1754224166634,3.5,161.31,161.28,11.42726012]
[1754224167728,3.5,161.31,161.29,6.2]
[1754224167929,235.26311782,161.32,161.28,5.22686012]
[1754224168223,3.5,161.3,161.28,6.54686012]
[1754224168433,3.5,161.3,161.29,5.22686012]
[1754224168631,3.5,161.3,161.29,6.54686012]
[1754224168831,3.5,161.3,161.29,12.74696012]
[1754224169033,3.5,161.3,161.29,11.42696012]
[1754224170633,3.5,161.3,161.29,6.2001]
[1754224170833,3.5,161.3,161.28,5.22686012]
[1754224171034,3.5,161.3,161.26,5.22686012]
[1754224171338,3.5,161.3,161.26,11.42776012]
[1754224171738,4.64871158,161.29,161.26,11.42776012]
[1754224171946,6.1996,161.31,161.26,5.22686012]
[1754224172132,3.5,161.27,161.26,5.22686012]
[1754224172635,3.5,161.27,161.26,11.42806012]
[1754224174943,8.14692794,161.27,161.26,11.42806012]
[1754224175145,8.14692794,161.27,161.26,12.74806012]
[1754224175740,8.14692794,161.27,161.26,6.54686012]
[1754224175941,8.14692794,161.27,161.26,1.32]
[1754224177248,8.14692794,161.27,161.26,7.5212]
[1754224178446,8.14692794,161.27,161.26,6.2012]
[1754224178647,8.14692794,161.27,161.26,7.5212]
[1754224178846,3.5,161.26,161.25,6.2016]
[1754224179742,3.5,161.26,161.23,8.27220232]
[1754224180948,0.39988212,161.26,161.25,6.2016]
[1754224181143,6.1994,161.31,161.25,16.10764055]
[1754224181348,6.1994,161.31,161.26,11.75080935]
[1754224181541,6.1994,161.31,161.27,6.52604055]
[1754224181742,6.1994,161.31,161.28,6.52604055]
[1754224181944,6.1994,161.31,161.29,6.52604055]
[1754224182149,6.1994,161.31,161.3,6.52604055]
[1754224183049,9.6994,161.31,161.3,6.52604055]
[1754224183846,6.1994,161.31,161.27,6.2008]
[1754224184050,3.26,161.3,161.27,6.2008]
[1754224184553,3.26,161.3,161.27,9.5208]
[1754224184747,9.4597,161.3,161.27,6.2008]
[1754224184953,3.26,161.29,161.27,6.2008]
[1754224185154,3.26,161.29,161.26,9.5211]
[1754224185350,3.26,161.29,161.26,3.32]
[1754224186551,3.26,161.29,161.25,5.2247688]
[1754224186945,3.26,161.29,161.18,6.95220232]
[1754224187151,6.2031,161.22,161.19,3.32]
[1754224187350,6.2031,161.22,161.18,6.2042]
[1754224187351,2.23,161.2,161.18,3.32]
[1754224187851,1.07943795,161.3,161.18,3.32]